fUST/lending_fUST_20250731
["ID","MTS","AMOUNT","RATE_DAILY","PERIOD"]
[376307637,1753925442839,-572.81,0.00019503,2]
[376307639,1753925442849,-460.0,0.00019503,2]
[376307641,1753925442858,-460.0,0.00019503,2]
[376307642,1753925442868,-460.0,0.00019503,2]
[376307644,1753925442877,-460.0,0.00019503,2]
[376307646,1753925442887,-460.0,0.00019503,2]
[376307648,1753925442896,-460.0,0.00019503,2]
[376307650,1753925442906,-460.0,0.00019503,2]
[376307652,1753925442915,-460.0,0.00019503,2]
[376307654,1753925442924,-460.0,0.00019503,2]
[376307656,1753925442933,-460.0,0.00019503,2]
[376307658,1753925442943,-460.0,0.00019503,2]
[376307660,1753925442953,-460.0,0.00019503,2]
[376307662,1753925442962,-460.0,0.00019503,2]
[376307664,1753925442972,-927.59,0.00019504,2]
[376307666,1753925442981,-460.0,0.00019504,2]
[376307668,1753925442990,-460.0,0.00019504,2]
[376307670,1753925443000,-460.0,0.00019504,2]
[376307673,1753925443010,-460.0,0.00019504,2]
[376307675,1753925443019,-460.0,0.00019504,2]
[376307677,1753925443029,-2451.93,0.00019505,2]
[376307679,1753925443039,-200.0,0.00019612,15]
[376307681,1753925443049,-200.0,0.00019612,15]
[376307683,1753925443058,-200.0,0.00019612,15]
[376307685,1753925443068,-200.0,0.00019612,15]
[376307687,1753925443077,-200.0,0.00019612,15]
[376307689,1753925443088,-200.0,0.00019612,15]
[376307691,1753925443098,-200.0,0.00019612,15]
[376307693,1753925443111,-200.0,0.00019612,15]
[376307695,1753925443120,-460.0,0.00019613,2]
[376307697,1753925443129,-460.0,0.00019775,2]
[376307700,1753925443139,-460.0,0.00019775,2]
[376307702,1753925443148,-461.41279161,0.00019775,2]
[376307704,1753925443158,-460.0,0.00019775,2]
[376307706,1753925443167,-728.94,0.00019775,2]
[376307708,1753925443176,-460.0,0.00019775,2]
[376307710,1753925443185,-1462.23,0.00019775,2]
[376307712,1753925443194,-460.0,0.00019776,2]
[376307714,1753925443204,-971.69,0.00019776,2]
[376307716,1753925443213,-460.0,0.00019776,2]
[376307718,1753925443223,-460.0,0.00019776,2]
[376307720,1753925443235,-460.0,0.00019776,2]
[376307723,1753925443244,-460.0,0.00019776,2]
[376307727,1753925443253,-585.12,0.00019776,2]
[376307729,1753925443263,-460.0,0.00019776,2]
[376307731,1753925443272,-460.0,0.00019776,2]
[376307733,1753925443282,-460.0,0.00019776,2]
[376307735,1753925443291,-460.0,0.00019776,2]
[376307737,1753925443301,-460.0,0.00019776,2]
[376307751,1753925443427,-460.0,0.00019776,2]
[376307753,1753925443437,-460.0,0.00019776,2]
[376307755,1753925443448,-460.0,0.00019776,2]
[376307757,1753925443458,-460.0,0.00019776,2]
[376307759,1753925443468,-460.0,0.00019776,2]
[376307761,1753925443478,-460.0,0.00019776,2]
[376307763,1753925443487,-460.0,0.00019776,2]
[376307765,1753925443496,-460.0,0.00019776,2]
[376307767,1753925443505,-460.0,0.00019776,2]
[376307769,1753925443516,-460.0,0.00019776,2]
[376307771,1753925443527,-977.17,0.00019777,2]
[376307773,1753925443536,-460.0,0.00019777,2]
[376307775,1753925443546,-460.0,0.00019777,2]
[376307777,1753925443556,-460.0,0.00019777,2]
[376307779,1753925443565,-572.81,0.00019777,2]
[376307781,1753925443577,-460.0,0.00019777,2]
[376307783,1753925443587,-927.59,0.00019778,2]
[376307785,1753925443596,-1256.33,0.00019778,2]
[376307787,1753925443607,-460.0,0.00019778,2]
[376307789,1753925443617,-460.0,0.00019778,2]
[376307791,1753925443626,-460.0,0.00019778,2]
[376307793,1753925443638,-614.48,0.00019778,2]
[376307795,1753925443647,-460.0,0.00019778,2]
[376307797,1753925443656,-2451.93,0.00019779,2]
[376307799,1753925443666,-1043.42693406,0.00019873,2]
[376307801,1753925443675,-6618.68688434,0.00019873,2]
[376307803,1753925443684,-168.46613994,0.0001995,2]
[376307805,1753925443693,-500.0,0.0001995,2]
[376307807,1753925443702,-500.0,0.0001995,2]
[376307809,1753925443711,-358.76367567,0.0001995,2]
[376307811,1753925443720,-500.0,0.0001995,2]
[376307813,1753925443729,-500.0,0.0001995,2]
[376307815,1753925443738,-500.0,0.0001995,2]
[376307817,1753925443747,-500.0,0.0001995,2]
[376307818,1753925443757,-500.0,0.0001995,2]
[376307820,1753925443766,-500.0,0.0001995,2]
[376307822,1753925443775,-500.0,0.0001995,2]
[376307824,1753925443784,-221.8533562,0.0001995,2]
[376307826,1753925443794,-500.0,0.0001995,2]
[376307828,1753925443803,-500.0,0.0001995,2]
[376307830,1753925443813,-500.0,0.0001995,2]
[376307832,1753925443822,-408.91271831,0.0001995,2]
[376307835,1753925443832,-510.60650345,0.0001995,2]
[376307837,1753925443841,-254.24170413,0.0001995,2]
[376307839,1753925443850,-298.16074817,0.0001995,2]
[376307841,1753925443859,-168.64304104,0.0001995,2]
[376307843,1753925443869,-460.0,0.0001995,2]
[376307845,1753925443878,-460.0,0.0001995,2]
[376307847,1753925443888,-550.69450049,0.0001995,2]
[376307849,1753925443897,-460.0,0.0001995,2]
[376307851,1753925443907,-460.0,0.0001995,2]
[376307853,1753925443917,-460.0,0.0001995,2]
[376307855,1753925443927,-1372.26644423,0.00019951,2]
[376307857,1753925443936,-370000.0,0.00019951,2]
[376307859,1753925443947,-500.0,0.00019973,2]
[376307861,1753925443956,-501.7862434,0.00019973,2]
[376307863,1753925443965,-500.0,0.00019973,2]
[376307865,1753925443974,-500.0,0.00019973,2]
[376307867,1753925443983,-500.70695849,0.00019973,2]
[376307869,1753925443992,-501.03740505,0.00019973,2]
[376307871,1753925444002,-500.0,0.00019973,2]
[376307873,1753925444011,-728.94,0.00020049,2]
[376307875,1753925444020,-1462.23,0.00020049,2]
[376307877,1753925444030,-971.69,0.0002005,2]
[376307879,1753925444039,-460.0,0.0002005,2]
[376307881,1753925444048,-585.12,0.0002005,2]
[376307883,1753925444058,-460.0,0.0002005,2]
[376307885,1753925444068,-460.0,0.0002005,2]
[376307887,1753925444078,-460.0,0.0002005,2]
[376307889,1753925444087,-555.39736177,0.0002005,2]
[376307891,1753925444096,-460.0,0.0002005,2]
[376307893,1753925444107,-460.0,0.0002005,2]
[376307895,1753925444116,-460.0,0.00020051,2]
[376307897,1753925444126,-2247.88,0.00020051,2]
[376307899,1753925444136,-495.9945483,0.00020051,2]
[376307901,1753925444145,-977.17,0.00020051,2]
[376307903,1753925444156,-572.81,0.00020051,2]
[376307905,1753925444167,-927.59,0.00020052,2]
[376307907,1753925444178,-1256.33,0.00020052,2]
[376307909,1753925444190,-460.0,0.00020052,2]
[376307911,1753925444199,-263.62,0.00020052,2]
[376307913,1753925444209,-460.0,0.00020052,2]
[376307916,1753925444220,-614.48,0.00020052,2]
[376307918,1753925444230,-2451.93,0.00020053,2]
[376307919,1753925444241,-647.63,0.00020054,2]
[376307922,1753925444252,-160.0,0.00020076,2]
[376307924,1753925444262,-179.76630381,0.0002014,2]
[376307925,1753925444271,-250.0,0.00020159,2]
[376307928,1753925444281,-472.84786134,0.00020221,2]
[376307930,1753925444290,-728.94,0.00020323,2]
[376307931,1753925444300,-1462.23,0.00020323,2]
[376307933,1753925444309,-971.69,0.00020324,2]
[376307935,1753925444322,-460.0,0.00020324,2]
[376307937,1753925444332,-585.12,0.00020324,2]
[376307939,1753925444341,-460.0,0.00020324,2]
[376307941,1753925444351,-460.0,0.00020324,2]
[376307943,1753925444360,-460.0,0.00020324,2]
[376307945,1753925444370,-460.0,0.00020324,2]
[376307947,1753925444382,-460.0,0.00020324,2]
[376307949,1753925444393,-460.0,0.00020325,2]
[376307952,1753925444405,-2247.88,0.00020325,2]
[376307954,1753925444415,-977.17,0.00020325,2]
[376307955,1753925444424,-572.81,0.00020325,2]
[376307958,1753925444433,-927.59,0.00020326,2]
[376307959,1753925444443,-1256.33,0.00020326,2]
[376307962,1753925444452,-460.0,0.00020326,2]
[376307963,1753925444462,-460.0,0.00020326,2]
[376307965,1753925444471,-614.48,0.00020326,2]
[376307967,1753925444480,-2451.93,0.00020327,2]
[376307970,1753925444490,-1043.42693402,0.0002038,2]
[376307971,1753925444499,-438.32694832,0.00020593,2]
[376307973,1753925444508,-728.94,0.00020597,2]
[376307975,1753925444517,-1462.23,0.00020597,2]
[376307977,1753925444526,-971.69,0.00020598,2]
[376307979,1753925444536,-460.0,0.00020598,2]
[376307981,1753925444545,-585.12,0.00020598,2]
[376307983,1753925444555,-460.0,0.00020598,2]
[376307985,1753925444564,-460.0,0.00020598,2]
[376307987,1753925444574,-460.0,0.00020598,2]
[376307989,1753925444583,-460.0,0.00020598,2]
[376307992,1753925444592,-460.0,0.00020598,2]
[376307994,1753925444602,-573.23,0.00020599,2]
[376307996,1753925444611,-2247.88,0.00020599,2]
[376307997,1753925444621,-977.17,0.00020599,2]
[376307999,1753925444630,-572.81,0.00020599,2]
[376308001,1753925444639,-927.59,0.000206,2]
[376308003,1753925444649,-1256.33,0.000206,2]
[376308005,1753925444658,-460.0,0.000206,2]
[376308007,1753925444668,-460.0,0.000206,2]
[376308009,1753925444677,-614.48,0.000206,2]
[376308012,1753925444687,-2451.93,0.00020601,2]
[376308013,1753925444696,-260.0,0.00020624,2]
[376308015,1753925444705,-728.94,0.00020871,2]
[376308017,1753925444714,-1462.23,0.00020871,2]
[376308019,1753925444724,-971.69,0.00020872,2]
[376308021,1753925444733,-460.0,0.00020872,2]
[376308024,1753925444743,-585.12,0.00020872,2]
[376308026,1753925444753,-460.0,0.00020872,2]
[376308028,1753925444762,-460.0,0.00020872,2]
[376308029,1753925444771,-460.0,0.00020872,2]
[376308031,1753925444781,-460.0,0.00020872,2]
[376308034,1753925444790,-460.0,0.00020872,2]
[376308035,1753925444800,-2247.88,0.00020873,2]
[376308037,1753925444810,-977.17,0.00020873,2]
[376308040,1753925444820,-572.81,0.00020873,2]
[376308041,1753925444829,-927.59,0.00020874,2]
[376308043,1753925444839,-1256.33,0.00020874,2]
[376308044,1753925444848,-460.0,0.00020874,2]
[376308045,1753925444858,-460.0,0.00020874,2]
[376308046,1753925444867,-2451.93,0.00020875,2]
[376308047,1753925444878,-234.79885253,0.00020877,2]
[376308048,1753925444888,-938.25621469,0.00020877,2]
[376308049,1753925444897,-407.20188238,0.00020877,2]
[376308050,1753925444907,-1043.42693402,0.00020887,2]
[376308051,1753925444917,-1627.17872197,0.00020945,2]
[376308052,1753925444927,-157.0,0.00021,4]
[376308053,1753925444936,-157.0,0.00021,3]
[376308054,1753925444945,-157.0,0.00021,4]
[376308055,1753925444956,-2024.31,0.00021042,3]
[376308056,1753925444965,-1462.23,0.00021145,2]
[376308057,1753925444974,-971.69,0.00021146,2]
[376308058,1753925444983,-460.0,0.00021146,2]
[376308059,1753925444993,-585.12,0.00021146,2]
[376308061,1753925445002,-412.04970704,0.00021146,2]
[376308063,1753925445011,-582.9,0.00021146,2]
[376308065,1753925445021,-460.0,0.00021146,2]
[376308067,1753925445030,-460.0,0.00021146,2]
[376308069,1753925445039,-2247.88,0.00021147,2]
[376308071,1753925445049,-977.17,0.00021147,2]
[376308073,1753925445058,-572.81,0.00021147,2]
[376308075,1753925445068,-927.59,0.00021148,2]
[376308077,1753925445078,-1256.33,0.00021148,2]
[376308079,1753925445087,-460.0,0.00021148,2]
[376308081,1753925445097,-460.0,0.00021148,2]
[376308083,1753925445107,-2451.93,0.00021149,2]
[376308085,1753925445116,-360.0,0.00021172,2]
[376308087,1753925445126,-151.0,0.000212,3]
[376308089,1753925445135,-2000.0,0.0002128,2]
[376308091,1753925445145,-186.82224494,0.000213,5]
[376308093,1753925445154,-151.0,0.0002137,2]
[376308095,1753925445164,-436.0,0.0002137,2]
[376308097,1753925445173,-151.0,0.0002137,2]
[376308099,1753925445183,-6618.68688432,0.00021387,2]
[376308102,1753925445192,-1043.42693402,0.00021393,2]
[376308103,1753925445202,-151.0,0.000214,3]
[376308106,1753925445211,-1462.23,0.00021419,2]
[376308108,1753925445221,-971.69,0.0002142,2]
[376308110,1753925445233,-460.0,0.0002142,2]
[376308111,1753925445243,-585.12,0.0002142,2]
[376308114,1753925445252,-460.0,0.0002142,2]
[376308115,1753925445261,-460.0,0.0002142,2]
[376308117,1753925445271,-2247.88,0.00021421,2]
[376308120,1753925445280,-977.17,0.00021421,2]
[376308121,1753925445289,-572.81,0.00021421,2]
[376308123,1753925445298,-151.0,0.00021422,2]
[376308125,1753925445308,-151.0,0.00021422,2]
[376308127,1753925445317,-151.0,0.00021422,2]
[376308129,1753925445326,-257.980292,0.00021422,2]
[376308132,1753925445335,-257.980292,0.00021422,2]
[376308133,1753925445345,-574.920082,0.00021422,2]
[376308135,1753925445354,-574.920082,0.00021422,2]
[376308137,1753925445363,-927.59,0.00021422,2]
[376308140,1753925445372,-1256.33,0.00021422,2]
[376308141,1753925445382,-460.0,0.00021422,2]
[376308144,1753925445392,-1189.483359,0.00021422,2]
[376308146,1753925445401,-1189.483359,0.00021422,2]
[376308148,1753925445411,-460.0,0.00021422,2]
[376308150,1753925445420,-2451.93,0.00021423,2]
[376308152,1753925445429,-675.78,0.00021424,2]
[376308154,1753925445438,-151.0,0.00021531,2]
[376308155,1753925445447,-151.0,0.00021531,2]
[376308158,1753925445457,-151.0,0.00021531,2]
[376308160,1753925445466,-200.0,0.00021534,15]
[376308162,1753925445476,-200.0,0.00021534,15]
[376308164,1753925445486,-200.0,0.00021534,15]
[376308166,1753925445495,-200.0,0.00021534,15]
[376308168,1753925445505,-200.0,0.00021534,15]
[376308170,1753925445515,-200.0,0.00021534,15]
[376308172,1753925445524,-200.0,0.00021534,15]
[376308174,1753925445534,-200.0,0.00021534,15]
[376308176,1753925445543,-200.0,0.00021534,15]
[376308178,1753925445552,-200.0,0.00021534,15]
[376308180,1753925445563,-240.0,0.00021534,15]
[376308182,1753925445572,-151.0,0.00021584,2]
[376308184,1753925445581,-151.0,0.00021584,2]
[376308186,1753925445591,-151.0,0.00021584,2]
[376308188,1753925445601,-25000.0,0.00021584,2]
[376308190,1753925445610,-151.0,0.00021584,2]
[376308192,1753925445619,-300.0,0.00021584,2]
[376308194,1753925445629,-13507.67630926,0.00021584,2]
[376308196,1753925445638,-224.88796595,0.00021584,2]
[376308198,1753925445647,-300.0,0.00021584,2]
[376308200,1753925445657,-300.0,0.00021584,2]
[376308202,1753925445667,-300.0,0.00021584,2]
[376308204,1753925445676,-300.0,0.00021584,2]
[376308206,1753925445685,-151.0,0.00021584,2]
[376308208,1753925445695,-300.0,0.00021584,2]
[376308210,1753925445704,-151.0,0.00021584,2]
[376308212,1753925445713,-300.0,0.00021584,2]
[376308214,1753925445723,-151.0,0.00021584,2]
[376308216,1753925445733,-300.0,0.00021584,2]
[376308218,1753925445742,-151.0,0.00021584,2]
[376308220,1753925445752,-500.0,0.00021584,2]
[376308222,1753925445762,-300.0,0.00021584,2]
[376308224,1753925445771,-151.0,0.00021584,2]
[376308226,1753925445781,-405.10140509,0.00021584,2]
[376308227,1753925445790,-300.0,0.00021584,2]
[376308230,1753925445799,-300.0,0.00021584,2]
[376308231,1753925445809,-300.0,0.00021584,2]
[376308233,1753925445819,-151.0,0.00021584,2]
[376308235,1753925445829,-300.0,0.00021584,2]
[376308237,1753925445839,-300.0,0.00021584,2]
[376308239,1753925445848,-151.0,0.00021584,2]
[376308251,1753925445945,-151.0,0.00021584,2]
[376308253,1753925445955,-2030.296672,0.00021584,2]
[376308255,1753925445965,-151.0,0.00021584,2]
[376308257,1753925445975,-300.0,0.00021584,2]
[376308259,1753925445985,-151.0,0.00021584,2]
[376308261,1753925445994,-151.0,0.00021584,2]
[376308263,1753925446004,-274.17152796,0.00021584,2]
[376308265,1753925446014,-300.0,0.00021584,2]
[376308267,1753925446023,-151.0,0.00021584,2]
[376308269,1753925446032,-151.0,0.00021584,2]
[376308271,1753925446042,-300.0,0.00021584,2]
[376308273,1753925446051,-151.0,0.00021584,2]
[376308275,1753925446060,-300.0,0.00021584,2]
[376308277,1753925446069,-151.0,0.00021584,2]
[376308279,1753925446079,-151.0,0.00021584,2]
[376308281,1753925446089,-176.40109688,0.00021584,2]
[376308283,1753925446098,-300.0,0.00021584,2]
[376308285,1753925446107,-290.0,0.00021584,2]
[376308287,1753925446117,-300.0,0.00021584,2]
[376308289,1753925446126,-151.0,0.00021584,2]
[376308291,1753925446135,-151.0,0.00021584,2]
[376308294,1753925446145,-151.0,0.00021584,2]
[376308296,1753925446154,-151.0,0.00021584,2]
[376308298,1753925446163,-151.0,0.00021584,2]
[376308300,1753925446172,-151.0,0.00021584,2]
[376308302,1753925446182,-151.0,0.00021584,2]
[376308304,1753925446191,-151.0,0.00021584,2]
[376308306,1753925446200,-151.0,0.00021584,2]
[376308308,1753925446210,-151.0,0.00021584,2]
[376308310,1753925446219,-151.0,0.00021584,2]
[376308312,1753925446229,-151.0,0.00021584,2]
[376308314,1753925446241,-151.0,0.00021584,2]
[376308317,1753925446250,-151.0,0.00021584,2]
[376308319,1753925446259,-151.0,0.00021584,2]
[376308321,1753925446269,-151.0,0.00021584,2]
[376308323,1753925446279,-151.0,0.00021584,2]
[376308325,1753925446289,-151.0,0.00021584,2]
[376308327,1753925446298,-151.0,0.00021584,2]
[376308329,1753925446308,-151.0,0.00021584,2]
[376308331,1753925446318,-151.0,0.00021588,2]
[376308333,1753925446328,-151.0,0.00021588,2]
[376308336,1753925446337,-257.980292,0.00021588,2]
[376308338,1753925446348,-257.980292,0.00021588,2]
[376308340,1753925446357,-574.920082,0.00021588,2]
[376308342,1753925446366,-574.920082,0.00021588,2]
[376308344,1753925446376,-1189.483359,0.00021588,2]
[376308346,1753925446385,-1189.483359,0.00021588,2]
[376308348,1753925446395,-200.51240394,0.00021596,2]
[376308350,1753925446405,-151.0,0.00021596,2]
[376308352,1753925446415,-151.0,0.00021596,2]
[376308354,1753925446424,-151.0,0.00021596,2]
[376308356,1753925446433,-151.0,0.00021596,2]
[376308357,1753925446443,-237.7654,0.00021596,2]
[376308359,1753925446454,-151.0,0.00021596,2]
[376308361,1753925446464,-151.0,0.00021596,2]
[376308363,1753925446475,-151.0,0.00021596,2]
[376308365,1753925446486,-151.0,0.00021596,2]
[376308367,1753925446497,-151.0,0.00021596,2]
[376308369,1753925446507,-151.0,0.00021596,2]
[376308371,1753925446518,-290.155106,0.00021596,2]
[376308373,1753925446529,-290.155106,0.00021596,2]
[376308375,1753925446539,-188.466427,0.00021596,2]
[376308377,1753925446549,-188.466427,0.00021596,2]
[376308380,1753925446559,-357.460275,0.00021596,2]
[376308382,1753925446570,-357.460275,0.00021596,2]
[376308384,1753925446580,-151.0,0.00021596,2]
[376308385,1753925446590,-151.0,0.00021596,2]
[376308388,1753925446599,-177.264006,0.00021596,2]
[376308390,1753925446609,-177.264006,0.00021596,2]
[376308392,1753925446618,-151.0,0.00021596,2]
[376308394,1753925446627,-151.0,0.00021596,2]
[376308395,1753925446636,-228.514847,0.00021596,2]
[376308398,1753925446645,-151.0,0.00021597,2]
[376308400,1753925446654,-151.0,0.00021597,2]
[376308402,1753925446664,-151.0,0.00021597,2]
[376308404,1753925446673,-151.0,0.00021597,2]
[376308406,1753925446682,-151.0,0.00021597,2]
[376308408,1753925446691,-151.0,0.00021597,2]
[376308410,1753925446699,-151.0,0.00021597,2]
[376308412,1753925446708,-658.466365,0.00021597,2]
[376308414,1753925446717,-658.466365,0.00021597,2]
[376308416,1753925446726,-151.0,0.00021597,2]
[376308418,1753925446735,-151.0,0.00021597,2]
[376308420,1753925446744,-151.0,0.00021597,2]
[376308422,1753925446753,-151.0,0.00021597,2]
[376308424,1753925446764,-151.0,0.00021597,2]
[376308426,1753925446773,-151.0,0.00021597,2]
[376308428,1753925446783,-151.0,0.00021597,2]
[376308429,1753925446793,-151.0,0.00021597,2]
[376308432,1753925446802,-151.0,0.00021597,2]
[376308433,1753925446812,-151.0,0.00021597,2]
[376308436,1753925446821,-290.155106,0.00021597,2]
[376308437,1753925446831,-290.155106,0.00021597,2]
[376308440,1753925446842,-165.0563,0.00021597,2]
[376308442,1753925446851,-165.0563,0.00021597,2]
[376308444,1753925446861,-188.466427,0.00021597,2]
[376308446,1753925446870,-188.466427,0.00021597,2]
[376308447,1753925446879,-357.460275,0.00021597,2]
[376308449,1753925446889,-357.460275,0.00021597,2]
[376308452,1753925446899,-151.0,0.00021597,2]
[376308454,1753925446908,-151.0,0.00021597,2]
[376308456,1753925446917,-151.0,0.00021597,2]
[376308458,1753925446926,-186.834768,0.00021597,2]
[376308459,1753925446935,-1138.32146,0.00021597,2]
[376308461,1753925446945,-1138.32146,0.00021597,2]
[376308463,1753925446953,-285.444168,0.00021597,2]
[376308466,1753925446964,-285.444168,0.00021597,2]
[376308468,1753925446974,-177.264006,0.00021597,2]
[376308470,1753925446983,-151.0,0.00021597,2]
[376308472,1753925446992,-177.264006,0.00021597,2]
[376308474,1753925447001,-375.276282,0.00021597,2]
[376308476,1753925447011,-375.276282,0.00021597,2]
[376308477,1753925447021,-151.0,0.00021597,2]
[376308479,1753925447030,-151.0,0.00021597,2]
[376308481,1753925447039,-151.0,0.000216,3]
[376308483,1753925447049,-153.0,0.00021616,2]
[376308485,1753925447059,-153.0,0.00021616,2]
[376308487,1753925447068,-153.0,0.00021616,2]
[376308489,1753925447077,-153.0,0.00021616,2]
[376308491,1753925447086,-153.0,0.00021616,2]
[376308493,1753925447096,-153.0,0.00021616,2]
[376308495,1753925447105,-153.0,0.00021616,2]
[376308497,1753925447114,-153.0,0.00021616,2]
[376308499,1753925447123,-500.0,0.00021624,2]
[376308501,1753925447133,-500.41995788,0.00021624,2]
[376308503,1753925447142,-500.0,0.00021624,2]
[376308505,1753925447152,-500.0,0.00021624,2]
[376308507,1753925447161,-500.0,0.00021624,2]
[376308509,1753925447170,-500.38890408,0.00021624,2]
[376308512,1753925447180,-500.0,0.00021624,2]
[376308514,1753925447189,-414.9329503,0.00021624,2]
[376308516,1753925447199,-500.0,0.00021624,2]
[376308518,1753925447208,-500.0,0.00021624,2]
[376308520,1753925447217,-500.0,0.00021624,2]
[376308522,1753925447226,-2105.41764886,0.00021639,2]
[376308524,1753925447240,-436.0,0.00021644,2]
[376308526,1753925447249,-2652.0,0.0002165,2]
[376308528,1753925447258,-500.0,0.00021676,2]
[376308530,1753925447267,-1462.23,0.00021693,2]
[376308532,1753925447276,-971.69,0.00021694,2]
[376308534,1753925447285,-460.0,0.00021694,2]
[376308536,1753925447294,-585.12,0.00021694,2]
[376308538,1753925447303,-460.0,0.00021694,2]
[376308540,1753925447312,-460.0,0.00021694,2]
[376308542,1753925447321,-2183.31810187,0.00021694,2]
[376308544,1753925447331,-2247.88,0.00021695,2]
[376308546,1753925447340,-977.17,0.00021695,2]
[376308548,1753925447349,-151.586332,0.00021695,2]
[376308550,1753925447358,-151.0,0.00021695,2]
[376308552,1753925447368,-151.0,0.00021695,2]
[376308553,1753925447377,-151.0,0.00021695,2]
[376308554,1753925447386,-151.0,0.00021695,2]
[376308555,1753925447395,-151.0,0.00021695,2]
[376308556,1753925447405,-151.0,0.00021695,2]
[376308557,1753925447414,-572.81,0.00021695,2]
[376308559,1753925447423,-874.411612,0.00021695,2]
[376308561,1753925447432,-874.411612,0.00021695,2]
[376308563,1753925447442,-927.59,0.00021696,2]
[376308565,1753925447451,-1256.33,0.00021696,2]
[376308567,1753925447460,-460.0,0.00021696,2]
[376308569,1753925447469,-486.641646,0.00021696,2]
[376308571,1753925447478,-486.641646,0.00021696,2]
[376308573,1753925447487,-361.38,0.00021696,2]
[376308575,1753925447496,-2451.93,0.00021697,2]
[376308577,1753925447506,-675.78,0.00021698,2]
[376308579,1753925447516,-151.0,0.00021698,2]
[376308581,1753925447525,-151.0,0.00021698,2]
[376308583,1753925447535,-460.0,0.0002172,2]
[376308585,1753925447546,-95422.07777118,0.00021739,2]
[376308587,1753925447556,-160.0,0.00021749,4]
[376308589,1753925447566,-1889.44750201,0.00021749,2]
[376308591,1753925447575,-151.0,0.0002175,2]
[376308593,1753925447584,-312.56084,0.0002175,2]
[376308595,1753925447593,-312.56084,0.0002175,2]
[376308597,1753925447603,-174.80715888,0.00021781,2]
[376308599,1753925447612,-151.0,0.000218,4]
[376308601,1753925447621,-178.954,0.00021808,2]
[376308603,1753925447630,-875.695,0.00021808,2]
[376308605,1753925447639,-2652.0,0.00021866,2]
[376308607,1753925447650,-1043.42693402,0.000219,2]
[376308609,1753925447659,-342.59219,0.00021918,2]
[376308611,1753925447668,-342.59219,0.00021918,2]
[376308613,1753925447678,-342.59219,0.00021918,2]
[376308615,1753925447687,-436.0,0.00021918,2]
[376308617,1753925447696,-153.950909,0.00021934,6]
[376308619,1753925447705,-325.0,0.00021956,2]
[376308621,1753925447714,-1462.23,0.00021967,2]
[376308623,1753925447723,-971.69,0.00021968,2]
[376308625,1753925447733,-460.0,0.00021968,2]
[376308627,1753925447742,-585.12,0.00021968,2]
[376308629,1753925447751,-460.0,0.00021968,2]
[376308631,1753925447760,-460.0,0.00021968,2]
[376308633,1753925447770,-312.16666667,0.00021969,2]
[376308635,1753925447779,-214.95885286,0.00021969,2]
[376308637,1753925447788,-160.0,0.00021969,2]
[376308639,1753925447797,-2247.88,0.00021969,2]
[376308641,1753925447806,-151.0,0.00021969,7]
[376308643,1753925447816,-977.17,0.00021969,2]